[Event "RUS-chT Men Rapid 2019"]
[Site "Sochi"]
[Date "2019.10.18"]
[Round "2.19"]
[White "Dudin, Gleb"]
[Black "Faizrakhmanov, Ramil"]
[Result "1-0"]
[ECO "E46"]
[WhiteElo "2314"]
[BlackElo "2434"]
[Annotator "NA"]
[PlyCount "67"]
[EventDate "2019.10.18"]
[EventType "swiss"]
[EventCountry "RUS"]
[SourceTitle "playchess.com"]
[Source "ChessBase"]
[SourceQuality "1"]
[TimeControl "900+10"]

1. d4 {[%emt 0:00:00]} Nf6 {[%emt 0:00:00]} 2. c4 {[%emt 0:00:00]} e6 {[%emt 0:00:00]} 3. Nc3 {[%emt 0:00:00]} Bb4 {[%emt 0:00:00]} 4. e3 {[%emt 0:00:02]} O-O {[%emt 0:00:06]} 5. Nge2 {[%emt 0:00:06]} c6 {[%emt 0:00:13]} 6. a3 {[%emt 0:00:03]} Ba5 {[%emt 0:00:03]} 7. c5 {[%emt 0:00:04]} d5 {[%emt 0:00:20]} 8. cxd6 {[%emt 0:00:11]} Qxd6 {[%emt 0:00:08]} 9. b4 {[%emt 0:00:05]} Bc7 {[%emt 0:00:15]} 10. g3 {[%emt 0:00:04]} e5 {[%emt 0:00:20]} 11. Bg2 {[%emt 0:00:04]} Nbd7 {[%emt 0:01:40]} 12. O-O {[%emt 0:01:29]} Nb6 {[%emt 0:00:08]} 13. Qc2 {[%emt 0:00:36]} Bg4 {[%emt 0:01:18]} 14. h3 {[%emt 0:02:15]} Be6 {[%emt 0:03:18]} 15. dxe5 {[%emt 0:05:06]} Qxe5 {[%emt 0:00:10]} 16. f4 {[%emt 0:00:01]} Qd6 {[%emt 0:04:56]} 17. e4 {[%emt 0:00:20]} Qe7 {[%emt 0:00:19]} 18. Be3 {[%emt 0:00:55]} Nfd7 {[%emt 0:01:06]} 19. Bf2 {[%emt 0:00:19]} f6 {[%emt 0:00:12]} 20. Rfe1 {[%emt 0:00:44]} Rad8 {[%emt 0:00:34]} 21. Nd4 {[%emt 0:00:25]} Rfe8 {[%emt 0:00:48]} 22. Nd5 {[%emt 0:02:02]} cxd5 {[%emt 0:01:19]} 23. exd5 {[%emt 0:00:08]} Rc8 {[%emt 0:00:03]} 24. Rxe6 {[%emt 0:01:08]} Qf7 {[%emt 0:00:17]} 25. Rae1 {[%emt 0:00:33]} Bb8 {[%emt 0:00:36]} 26. Qe2 {[%emt 0:01:24]} Kf8 {[%emt 0:00:36]} 27. Nf5 {[%emt 0:00:44]} g6 {[%emt 0:00:19]} 28. Nh6 {[%emt 0:00:02]} Rxe6 {[%emt 0:00:18]} 29. dxe6 {[%emt 0:00:03]} Qe7 {[%emt 0:00:10]} 30. exd7 {[%emt 0:00:05]} Qxd7 {[%emt 0:00:02]} 31. Ng4 {[%emt 0:00:39]} Kf7 {[%emt 0:00:09]} 32. Bc5 {[%emt 0:00:22]} Bd6 {[%emt 0:00:08]} 33. Bxb6 {[%emt 0:00:16]} axb6 {[%emt 0:00:02]} 34. Bd5+ {[%emt 0:00:01]} 1-0

[Event "RUS-chT Men Rapid 2019"]
[Site "Sochi"]
[Date "2019.10.18"]
[Round "2.20"]
[White "Samusenko, Maksim"]
[Black "Yeritsyan, Aram"]
[Result "1-0"]
[ECO "A45"]
[WhiteElo "2445"]
[BlackElo "2271"]
[Annotator "NA"]
[PlyCount "69"]
[EventDate "2019.10.18"]
[EventType "swiss"]
[EventCountry "RUS"]
[SourceTitle "playchess.com"]
[Source "ChessBase"]
[SourceQuality "1"]
[TimeControl "900+10"]

1. d4 {[%emt 0:00:00]} Nf6 {[%emt 0:00:00]} 2. Bf4 {[%emt 0:00:00]} e6 {[%emt 0:00:00]} 3. e3 {[%emt 0:00:00]} c5 {[%emt 0:00:00]} 4. c3 {[%emt 0:00:00]} cxd4 5. exd4 {[%emt 0:00:03]} b6 {[%emt 0:00:01]} 6. Nf3 {[%emt 0:00:11]} Be7 {[%emt 0:00:02]} 7. h3 {[%emt 0:00:01]} O-O {[%emt 0:00:03]} 8. Nbd2 {[%emt 0:00:04]} d6 {[%emt 0:00:02]} 9. Bd3 {[%emt 0:00:29]} Ba6 {[%emt 0:00:03]} 10. Bxa6 Nxa6 {[%emt 0:00:01]} 11. Qe2 {[%emt 0:01:03]} Nc7 {[%emt 0:00:06]} 12. O-O {[%emt 0:00:21]} b5 {[%emt 0:00:06]} 13. Rfe1 {[%emt 0:04:38]} Nfd5 {[%emt 0:00:04]} 14. Bg3 {[%emt 0:00:10]} Nb6 {[%emt 0:00:23]} 15. b3 {[%emt 0:02:14]} Re8 {[%emt 0:00:01]} 16. c4 {[%emt 0:00:09]} bxc4 {[%emt 0:00:25]} 17. bxc4 {[%emt 0:00:07]} Qd7 {[%emt 0:00:02]} 18. Rac1 {[%emt 0:00:39]} Rac8 {[%emt 0:00:37]} 19. c5 {[%emt 0:00:57]} Nbd5 {[%emt 0:00:15]} 20. Ne4 {[%emt 0:00:06]} dxc5 {[%emt 0:02:08]} 21. dxc5 {[%emt 0:00:04]} Red8 {[%emt 0:02:04]} 22. Nd6 {[%emt 0:03:16]} Bxd6 {[%emt 0:00:16]} 23. cxd6 {[%emt 0:00:01]} Nb5 {[%emt 0:02:09]} 24. Rxc8 {[%emt 0:01:41]} Rxc8 {[%emt 0:00:02]} 25. Ne5 {[%emt 0:00:01]} Qb7 {[%emt 0:00:14]} 26. d7 {[%emt 0:00:02]} Rd8 {[%emt 0:00:58]} 27. Nxf7 {[%emt 0:00:30]} Rxd7 {[%emt 0:00:07]} 28. Ng5 {[%emt 0:00:11]} Re7 {[%emt 0:00:49]} 29. Be5 {[%emt 0:00:13]} h6 {[%emt 0:03:26]} 30. Ne4 {[%emt 0:00:02]} Qb6 {[%emt 0:00:32]} 31. Rc1 {[%emt 0:00:16]} Nd4 {[%emt 0:01:52]} 32. Rc8+ {[%emt 0:01:17]} Kh7 {[%emt 0:00:01]} 33. Qg4 {[%emt 0:00:15]} Nf5 {[%emt 0:00:15]} 34. Kh2 {[%emt 0:00:13]} Qb5 {[%emt 0:01:30]} 35. Qh5 {[%emt 0:00:15]} 1-0

[Event "RUS-chT Men Rapid 2019"]
[Site "Sochi"]
[Date "2019.10.18"]
[Round "2.22"]
[White "Eraschenkov, Denis"]
[Black "Lysyj, Igor"]
[Result "1/2-1/2"]
[ECO "A14"]
[WhiteElo "2382"]
[BlackElo "2596"]
[Annotator "ChessBase"]
[PlyCount "61"]
[EventDate "2019.10.18"]
[EventType "swiss"]
[EventCountry "RUS"]
[SourceTitle "playchess.com"]
[Source "ChessBase"]
[SourceQuality "1"]
[TimeControl "900+10"]

1. c4 {[%emt 0:00:00]} e6 {[%emt 0:00:00]} 2. Nf3 {[%emt 0:00:05]} Nf6 {[%emt 0:00:00]} 3. g3 {[%emt 0:00:21]} d5 {[%emt 0:00:00]} 4. Bg2 {[%emt 0:00:03]} Be7 {[%emt 0:00:02]} 5. O-O {[%emt 0:00:04]} O-O {[%emt 0:00:02]} 6. b3 {[%emt 0:00:06]} b6 {[%emt 0:00:02]} 7. Bb2 {[%emt 0:00:18]} Bb7 {[%emt 0:00:02]} 8. e3 {[%emt 0:00:06]} c5 {[%emt 0:00:02]} 9. Nc3 {[%emt 0:00:21]} Qc8 {[%emt 0:00:02]} 10. Rc1 {[%emt 0:04:32]} Rd8 {[%emt 0:00:11]} 11. cxd5 {[%emt 0:01:55]} Nxd5 {[%emt 0:00:07]} 12. Nxd5 {[%emt 0:00:25]} Bxd5 {[%emt 0:00:05]} 13. d4 {[%emt 0:00:27]} Be4 {[%emt 0:01:46]} 14. Ne5 {[%emt 0:02:24]} Bxg2 {[%emt 0:00:09]} 15. Kxg2 {[%emt 0:00:02]} Nc6 {[%emt 0:01:22]} 16. Nxc6 {[%emt 0:01:35]} Qxc6+ {[%emt 0:00:02]} 17. Qf3 {[%emt 0:00:05]} Qxf3+ {[%emt 0:01:04]} 18. Kxf3 {[%emt 0:00:02]} Bf6 {[%emt 0:00:01]} 19. Rc4 {[%emt 0:00:29]} Rd7 {[%emt 0:01:29]} 20. Rfc1 {[%emt 0:00:58]} Rad8 {[%emt 0:01:16]} 21. R1c2 {[%emt 0:00:09]} cxd4 {[%emt 0:00:42]} 22. Bxd4 {[%emt 0:00:09]} Bxd4 {[%emt 0:00:03]} 23. Rxd4 {[%emt 0:00:09]} Kf8 {[%emt 0:00:47]} 24. Ke4 {[%emt 0:01:04]} Ke7 {[%emt 0:02:47]} 25. Rcd2 {[%emt 0:00:45]} Rxd4+ {[%emt 0:00:41]} 26. Rxd4 {[%emt 0:00:03]} Rc8 {[%emt 0:00:03]} 27. Kd3 {[%emt 0:00:12]} h5 {[%emt 0:01:11]} 28. Rc4 {[%emt 0:00:13]} Rd8+ {[%emt 0:00:00]} 29. Rd4 {[%emt 0:00:02]} Rc8 {[%emt 0:00:09]} 30. Rc4 {[%emt 0:00:08]} Rd8+ {[%emt 0:00:10]} 31. Ke4 1/2-1/2

[Event "RUS-chT Men Rapid 2019"]
[Site "Sochi"]
[Date "2019.10.18"]
[Round "2.24"]
[White "Dianov, Alexey"]
[Black "Remizov, Yaroslav"]
[Result "0-1"]
[ECO "B10"]
[WhiteElo "2158"]
[BlackElo "2394"]
[Annotator "NA"]
[PlyCount "98"]
[EventDate "2019.10.18"]
[EventType "swiss"]
[EventCountry "RUS"]
[SourceTitle "playchess.com"]
[Source "ChessBase"]
[SourceQuality "1"]
[TimeControl "900+10"]

1. e4 {[%emt 0:00:00]} c6 {[%emt 0:00:03]} 2. c4 {[%emt 0:00:00]} d5 {[%emt 0:00:05]} 3. cxd5 {[%emt 0:00:00]} cxd5 {[%emt 0:00:02]} 4. exd5 {[%emt 0:00:00]} Nf6 {[%emt 0:00:07]} 5. Qa4+ {[%emt 0:00:00]} Nbd7 {[%emt 0:02:03]} 6. Bc4 {[%emt 0:00:01]} g6 {[%emt 0:00:54]} 7. Nc3 {[%emt 0:00:01]} Bg7 {[%emt 0:00:35]} 8. Nf3 {[%emt 0:00:04]} O-O {[%emt 0:00:56]} 9. d3 {[%emt 0:00:03]} a6 {[%emt 0:02:09]} 10. Qa3 {[%emt 0:00:01]} Nb6 {[%emt 0:01:57]} 11. Qb3 {[%emt 0:00:04]} Nxc4 {[%emt 0:04:05]} 12. dxc4 {[%emt 0:00:02]} b5 {[%emt 0:00:49]} 13. cxb5 {[%emt 0:00:05]} Nxd5 {[%emt 0:00:47]} 14. Nxd5 {[%emt 0:03:32]} Be6 {[%emt 0:00:01]} 15. O-O {[%emt 0:00:13]} Bxd5 {[%emt 0:00:08]} 16. Qd3 {[%emt 0:01:05]} axb5 {[%emt 0:00:21]} 17. Qxb5 {[%emt 0:00:18]} Bxa2 {[%emt 0:01:57]} 18. Re1 {[%emt 0:01:20]} e6 {[%emt 0:00:42]} 19. Qe2 {[%emt 0:03:47]} Bd5 {[%emt 0:00:10]} 20. Rxa8 {[%emt 0:00:12]} Qxa8 {[%emt 0:00:01]} 21. Bf4 {[%emt 0:01:02]} Qb7 {[%emt 0:00:18]} 22. Bd6 {[%emt 0:01:33]} Rd8 {[%emt 0:00:12]} 23. Ba3 {[%emt 0:00:02]} Rb8 {[%emt 0:00:07]} 24. Bd6 {[%emt 0:00:23]} Rd8 {[%emt 0:00:11]} 25. Ba3 {[%emt 0:00:01]} h6 {[%emt 0:00:06]} 26. h3 {[%emt 0:00:23]} Rb8 {[%emt 0:00:11]} 27. Bd6 {[%emt 0:00:01]} Rd8 {[%emt 0:00:01]} 28. Ba3 {[%emt 0:00:01]} Rb8 {[%emt 0:00:01]} 29. Bd6 {[%emt 0:00:01]} Rc8 {[%emt 0:00:18]} 30. b4 {[%emt 0:00:33]} Rc4 {[%emt 0:00:22]} 31. Rb1 {[%emt 0:01:26]} Qb5 {[%emt 0:00:17]} 32. Qf1 {[%emt 0:01:20]} Bxf3 {[%emt 0:00:11]} 33. gxf3 {[%emt 0:00:03]} Qg5+ {[%emt 0:00:09]} 34. Bg3 {[%emt 0:00:16]} Rc3 {[%emt 0:00:10]} 35. b5 {[%emt 0:00:12]} Rxf3 {[%emt 0:00:11]} 36. Qg2 {[%emt 0:00:26]} Qf5 {[%emt 0:00:01]} 37. Rb4 {[%emt 0:00:32]} Bf8 {[%emt 0:00:10]} 38. Rb2 {[%emt 0:00:43]} Bg7 {[%emt 0:00:12]} 39. Rb4 {[%emt 0:00:45]} Bf8 {[%emt 0:00:01]} 40. Rb2 {[%emt 0:00:01]} Ba3 {[%emt 0:00:03]} 41. Rd2 {[%emt 0:00:50]} Bc5 {[%emt 0:00:19]} 42. Rd8+ {[%emt 0:00:17]} Kh7 {[%emt 0:00:01]} 43. Rc8 {[%emt 0:00:09]} Rc3 {[%emt 0:00:34]} 44. b6 {[%emt 0:00:16]} Bxf2+ {[%emt 0:00:03]} 45. Qxf2 {[%emt 0:00:03]} Qxf2+ {[%emt 0:00:16]} 46. Kxf2 {[%emt 0:00:03]} Rxc8 {[%emt 0:00:01]} 47. b7 {[%emt 0:00:00]} Re8 {[%emt 0:00:07]} 48. Ke3 {[%emt 0:00:09]} e5 {[%emt 0:00:08]} 49. Ke4 {[%emt 0:00:01]} Rb8 {[%emt 0:00:03]} 0-1

[Event "RUS-chT Men Rapid 2019"]
[Site "Sochi"]
[Date "2019.10.18"]
[Round "2.25"]
[White "Zakhartsov, Vladimir"]
[Black "Smirnov, Timofey"]
[Result "1/2-1/2"]
[ECO "D16"]
[WhiteElo "2514"]
[BlackElo "2354"]
[Annotator "ChessBase"]
[PlyCount "86"]
[EventDate "2019.10.18"]
[EventType "swiss"]
[EventCountry "RUS"]
[SourceTitle "playchess.com"]
[Source "ChessBase"]
[SourceQuality "1"]
[TimeControl "900+10"]

1. d4 {[%emt 0:00:00]} d5 {[%emt 0:00:00]} 2. c4 {[%emt 0:00:00]} c6 {[%emt 0:00:00]} 3. Nf3 {[%emt 0:00:03]} Nf6 {[%emt 0:00:00]} 4. Nc3 {[%emt 0:00:13]} dxc4 {[%emt 0:00:03]} 5. a4 {[%emt 0:00:01]} e6 {[%emt 0:00:13]} 6. e3 {[%emt 0:00:37]} c5 {[%emt 0:00:06]} 7. Bxc4 {[%emt 0:00:06]} Nc6 {[%emt 0:00:04]} 8. d5 {[%emt 0:00:37]} exd5 {[%emt 0:00:19]} 9. Nxd5 {[%emt 0:00:02]} Nxd5 {[%emt 0:03:56]} 10. Bxd5 {[%emt 0:00:04]} Be7 {[%emt 0:00:01]} 11. O-O {[%emt 0:00:33]} Nb4 {[%emt 0:01:37]} 12. Bc4 {[%emt 0:00:11]} Qxd1 {[%emt 0:00:13]} 13. Rxd1 {[%emt 0:00:02]} Be6 {[%emt 0:00:53]} 14. Bxe6 {[%emt 0:00:24]} fxe6 {[%emt 0:00:01]} 15. Bd2 {[%emt 0:00:03]} Bf6 {[%emt 0:01:15]} 16. Bc3 {[%emt 0:00:30]} Ke7 {[%emt 0:00:04]} 17. Rac1 {[%emt 0:00:54]} Bxc3 {[%emt 0:00:20]} 18. bxc3 {[%emt 0:01:19]} Nc6 {[%emt 0:00:01]} 19. Kf1 {[%emt 0:00:14]} Rhd8 {[%emt 0:00:17]} 20. Ke2 {[%emt 0:00:14]} b6 {[%emt 0:01:32]} 21. Ng5 {[%emt 0:00:12]} h6 {[%emt 0:00:03]} 22. Ne4 {[%emt 0:00:02]} Ne5 {[%emt 0:00:16]} 23. Rxd8 {[%emt 0:00:54]} Rxd8 {[%emt 0:00:02]} 24. a5 {[%emt 0:00:11]} Nc6 {[%emt 0:02:44]} 25. axb6 {[%emt 0:00:21]} axb6 {[%emt 0:00:01]} 26. Ra1 {[%emt 0:00:07]} Kd7 {[%emt 0:00:01]} 27. f4 {[%emt 0:00:16]} Kc7 {[%emt 0:00:14]} 28. g4 {[%emt 0:00:12]} c4 {[%emt 0:00:06]} 29. g5 {[%emt 0:00:46]} Rd3 {[%emt 0:01:25]} 30. gxh6 {[%emt 0:00:56]} gxh6 {[%emt 0:00:01]} 31. Rg1 {[%emt 0:00:03]} Ne7 {[%emt 0:00:00]} 32. Rd1 {[%emt 0:01:51]} Rxd1 {[%emt 0:01:43]} 33. Kxd1 {[%emt 0:00:01]} Nd5 {[%emt 0:00:01]} 34. Kd2 {[%emt 0:00:06]} b5 {[%emt 0:00:00]} 35. Ng3 {[%emt 0:00:14]} Kd6 {[%emt 0:00:07]} 36. f5 {[%emt 0:00:28]} Ke5 {[%emt 0:00:00]} 37. fxe6 {[%emt 0:00:14]} Kxe6 {[%emt 0:00:01]} 38. Ne2 {[%emt 0:00:06]} Ke5 {[%emt 0:00:43]} 39. Nd4 {[%emt 0:00:14]} Ke4 {[%emt 0:00:04]} 40. Nxb5 {[%emt 0:00:13]} Nxe3 {[%emt 0:00:02]} 41. Ke2 {[%emt 0:00:27]} h5 {[%emt 0:00:12]} 42. Nd6+ {[%emt 0:00:18]} Kf4 {[%emt 0:00:02]} 43. h4 {[%emt 0:03:03]} Nd5 {[%emt 0:00:24]} 1/2-1/2

[Event "RUS-chT Men Rapid 2019"]
[Site "Sochi"]
[Date "2019.10.18"]
[Round "2.27"]
[White "Golubov, Saveliy"]
[Black "Mikhailovsky, Vladimir"]
[Result "1-0"]
[ECO "A48"]
[WhiteElo "2469"]
[BlackElo "2209"]
[Annotator "ChessBase"]
[PlyCount "91"]
[EventDate "2019.10.18"]
[EventType "swiss"]
[EventCountry "RUS"]
[SourceTitle "playchess.com"]
[Source "ChessBase"]
[SourceQuality "1"]
[TimeControl "900+10"]

1. d4 {[%emt 0:00:00]} Nf6 {[%emt 0:00:00]} 2. Nf3 {[%emt 0:00:02]} g6 {[%emt 0:00:00]} 3. Bg5 {[%emt 0:00:21]} Bg7 {[%emt 0:00:02]} 4. Nbd2 {[%emt 0:00:03]} d5 {[%emt 0:00:49]} 5. c3 {[%emt 0:00:13]} O-O {[%emt 0:00:10]} 6. e3 {[%emt 0:00:27]} c6 {[%emt 0:01:09]} 7. Be2 {[%emt 0:02:19]} Nbd7 {[%emt 0:00:51]} 8. h3 {[%emt 0:00:09]} Re8 {[%emt 0:00:18]} 9. Bf4 {[%emt 0:00:04]} h6 {[%emt 0:01:58]} 10. O-O {[%emt 0:00:54]} Nh7 {[%emt 0:01:10]} 11. c4 {[%emt 0:03:54]} e5 {[%emt 0:03:21]} 12. dxe5 {[%emt 0:00:11]} g5 {[%emt 0:00:53]} 13. Bg3 {[%emt 0:00:32]} Nxe5 {[%emt 0:00:08]} 14. Nxe5 {[%emt 0:00:02]} Bxe5 {[%emt 0:00:03]} 15. Bxe5 {[%emt 0:00:03]} Rxe5 {[%emt 0:00:02]} 16. Nf3 {[%emt 0:00:03]} Re6 {[%emt 0:01:58]} 17. cxd5 {[%emt 0:00:23]} Rd6 {[%emt 0:00:02]} 18. e4 {[%emt 0:00:32]} cxd5 {[%emt 0:00:06]} 19. e5 {[%emt 0:00:11]} Rb6 {[%emt 0:00:14]} 20. Qd2 {[%emt 0:01:02]} Be6 {[%emt 0:00:19]} 21. Nd4 {[%emt 0:00:44]} Rc8 {[%emt 0:01:47]} 22. Bd3 {[%emt 0:01:18]} Qe7 {[%emt 0:01:51]} 23. a3 {[%emt 0:00:14]} f6 {[%emt 0:00:56]} 24. Rae1 {[%emt 0:01:33]} fxe5 {[%emt 0:00:17]} 25. Rxe5 {[%emt 0:00:04]} Qf6 {[%emt 0:00:08]} 26. Qe3 {[%emt 0:00:28]} Nf8 {[%emt 0:00:29]} 27. f4 {[%emt 0:00:24]} g4 {[%emt 0:00:01]} 28. hxg4 {[%emt 0:00:47]} Bxg4 {[%emt 0:00:07]} 29. b4 {[%emt 0:00:42]} a5 {[%emt 0:00:08]} 30. b5 {[%emt 0:00:08]} Rd6 {[%emt 0:00:05]} 31. Qg3 {[%emt 0:00:42]} Qg7 {[%emt 0:00:05]} 32. f5 {[%emt 0:00:51]} Nd7 {[%emt 0:00:22]} 33. Re3 {[%emt 0:00:25]} Qxd4 {[%emt 0:00:15]} 34. Rf4 {[%emt 0:00:01]} Qa1+ {[%emt 0:00:17]} 35. Re1 {[%emt 0:00:15]} Qf6 {[%emt 0:00:03]} 36. Rxg4+ {[%emt 0:00:06]} Kh8 {[%emt 0:00:02]} 37. Kh2 {[%emt 0:00:16]} Rb6 {[%emt 0:00:29]} 38. Rg6 {[%emt 0:00:12]} Qf8 {[%emt 0:00:06]} 39. Ree6 {[%emt 0:00:26]} Rxe6 {[%emt 0:00:04]} 40. fxe6 {[%emt 0:00:03]} Nf6 {[%emt 0:00:17]} 41. Qe5 {[%emt 0:00:03]} Qe7 {[%emt 0:00:17]} 42. Qxf6+ {[%emt 0:00:14]} Qxf6 {[%emt 0:00:02]} 43. Rxf6 {[%emt 0:00:01]} Kg7 {[%emt 0:00:06]} 44. Rf7+ {[%emt 0:00:02]} Kg8 {[%emt 0:00:01]} 45. Rxb7 {[%emt 0:00:01]} Re8 {[%emt 0:00:03]} 46. Bg6 {[%emt 0:00:05]} 1-0

[Event "RUS-chT Men Rapid 2019"]
[Site "Sochi"]
[Date "2019.10.18"]
[Round "3.2"]
[White "Potkin, Vladimir"]
[Black "Iljin, Artem"]
[Result "1/2-1/2"]
[ECO "D35"]
[WhiteElo "2583"]
[BlackElo "2509"]
[Annotator "ChessBase"]
[PlyCount "131"]
[EventDate "2019.10.18"]
[EventType "swiss"]
[EventCountry "RUS"]
[SourceTitle "playchess.com"]
[Source "ChessBase"]
[SourceQuality "1"]
[TimeControl "900+10"]

1. c4 {[%emt 0:00:00]} e6 {[%emt 0:00:00]} 2. Nc3 {[%emt 0:00:05]} d5 {[%emt 0:00:00]} 3. d4 {[%emt 0:00:04]} Nf6 {[%emt 0:00:02]} 4. cxd5 {[%emt 0:00:04]} exd5 {[%emt 0:00:03]} 5. Bg5 {[%emt 0:00:03]} c6 {[%emt 0:00:02]} 6. e3 {[%emt 0:00:02]} Be7 {[%emt 0:00:10]} 7. Bd3 {[%emt 0:00:03]} Nbd7 {[%emt 0:00:04]} 8. Qc2 {[%emt 0:00:07]} h6 {[%emt 0:00:05]} 9. Bh4 {[%emt 0:00:07]} Nh5 {[%emt 0:00:05]} 10. Bxe7 {[%emt 0:00:03]} Qxe7 {[%emt 0:00:02]} 11. Nge2 {[%emt 0:00:06]} Nb6 {[%emt 0:00:09]} 12. O-O {[%emt 0:00:33]} O-O {[%emt 0:00:08]} 13. Rab1 {[%emt 0:00:55]} Bd7 {[%emt 0:03:12]} 14. b4 {[%emt 0:00:05]} a6 {[%emt 0:00:04]} 15. Nc1 {[%emt 0:00:25]} g6 {[%emt 0:01:55]} 16. a4 {[%emt 0:02:06]} Ng7 {[%emt 0:03:51]} 17. b5 {[%emt 0:00:03]} axb5 {[%emt 0:00:15]} 18. axb5 {[%emt 0:00:01]} c5 {[%emt 0:00:20]} 19. dxc5 {[%emt 0:00:25]} Qxc5 {[%emt 0:00:02]} 20. Nb3 {[%emt 0:00:23]} Qe7 {[%emt 0:00:39]} 21. Nd4 {[%emt 0:00:27]} Rfc8 {[%emt 0:01:05]} 22. Qd2 {[%emt 0:00:39]} Ne6 {[%emt 0:01:38]} 23. Nce2 {[%emt 0:00:53]} Nc5 {[%emt 0:01:22]} 24. Nf4 {[%emt 0:00:16]} Ne4 {[%emt 0:00:25]} 25. Bxe4 {[%emt 0:00:28]} dxe4 {[%emt 0:00:06]} 26. Rfd1 {[%emt 0:00:22]} Rc5 {[%emt 0:01:40]} 27. h3 {[%emt 0:00:43]} Ra4 {[%emt 0:00:41]} 28. Ra1 {[%emt 0:01:02]} Rxa1 {[%emt 0:00:19]} 29. Rxa1 {[%emt 0:00:01]} Qd6 {[%emt 0:00:35]} 30. Qb2 {[%emt 0:00:41]} Bc8 {[%emt 0:00:21]} 31. Rd1 {[%emt 0:00:15]} Qc7 {[%emt 0:00:06]} 32. Nde2 {[%emt 0:00:53]} Qe7 {[%emt 0:00:18]} 33. Ng3 {[%emt 0:00:40]} Kh7 {[%emt 0:00:22]} 34. Nxe4 {[%emt 0:02:24]} Qxe4 {[%emt 0:00:08]} 35. Qf6 {[%emt 0:00:01]} Qf5 {[%emt 0:00:25]} 36. Qxb6 {[%emt 0:00:03]} Rxb5 {[%emt 0:00:03]} 37. Qc7 {[%emt 0:01:26]} Rb1 {[%emt 0:00:04]} 38. Rxb1 {[%emt 0:00:09]} Qxb1+ {[%emt 0:00:01]} 39. Kh2 {[%emt 0:00:01]} Qf5 {[%emt 0:00:02]} 40. e4 {[%emt 0:00:52]} Qd7 {[%emt 0:00:03]} 41. Qe5 {[%emt 0:00:01]} h5 {[%emt 0:00:39]} 42. Nd5 {[%emt 0:00:17]} Qe6 {[%emt 0:00:04]} 43. Qd4 {[%emt 0:00:19]} b5 {[%emt 0:00:17]} 44. Nf6+ {[%emt 0:00:44]} Kh6 {[%emt 0:00:01]} 45. f4 {[%emt 0:01:12]} Bb7 {[%emt 0:00:21]} 46. Qd8 {[%emt 0:00:46]} Qc8 {[%emt 0:00:01]} 47. Qe7 {[%emt 0:00:09]} Kg7 {[%emt 0:00:04]} 48. Qe5 {[%emt 0:00:04]} Qe6 {[%emt 0:00:27]} 49. Nxh5+ {[%emt 0:00:11]} Kf8 {[%emt 0:00:04]} 50. Qb8+ {[%emt 0:00:28]} Bc8 {[%emt 0:00:17]} 51. f5 {[%emt 0:00:11]} gxf5 {[%emt 0:00:09]} 52. Nf4 {[%emt 0:00:01]} Qe8 {[%emt 0:00:08]} 53. Qd6+ {[%emt 0:00:35]} Qe7 {[%emt 0:00:05]} 54. Qh6+ {[%emt 0:00:05]} Ke8 {[%emt 0:00:08]} 55. Qh8+ {[%emt 0:00:33]} Kd7 {[%emt 0:00:05]} 56. Qd4+ {[%emt 0:00:11]} Qd6 {[%emt 0:00:05]} 57. Qa7+ {[%emt 0:00:15]} Ke8 {[%emt 0:00:25]} 58. e5 {[%emt 0:00:28]} Qxe5 {[%emt 0:00:06]} 59. Kg3 {[%emt 0:00:01]} Bd7 {[%emt 0:00:16]} 60. Qb6 {[%emt 0:00:08]} Qc3+ {[%emt 0:00:13]} 61. Kh2 {[%emt 0:00:01]} Qe5 {[%emt 0:00:02]} 62. Kg3 {[%emt 0:00:02]} Qe1+ {[%emt 0:00:15]} 63. Kh2 {[%emt 0:00:03]} Qe5 {[%emt 0:00:02]} 64. Kg3 {[%emt 0:00:01]} Qe1+ {[%emt 0:00:20]} 65. Kh2 {[%emt 0:00:02]} Qe5 {[%emt 0:00:10]} 66. Kg3 1/2-1/2

[Event "RUS-chT Men Rapid 2019"]
[Site "Sochi"]
[Date "2019.10.18"]
[Round "3.3"]
[White "Faizrakhmanov, Ramil"]
[Black "Savchenko, Boris"]
[Result "1/2-1/2"]
[ECO "D70"]
[WhiteElo "2434"]
[BlackElo "2581"]
[Annotator "ChessBase"]
[PlyCount "117"]
[EventDate "2019.10.18"]
[EventType "swiss"]
[EventCountry "RUS"]
[SourceTitle "playchess.com"]
[Source "ChessBase"]
[SourceQuality "1"]
[TimeControl "900+10"]

1. d4 {[%emt 0:00:00]} Nf6 {[%emt 0:00:00]} 2. c4 {[%emt 0:00:00]} g6 {[%emt 0:00:00]} 3. Nf3 {[%emt 0:00:00]} Bg7 {[%emt 0:00:00]} 4. e3 {[%emt 0:00:06]} c5 {[%emt 0:00:16]} 5. Be2 {[%emt 0:00:09]} cxd4 {[%emt 0:00:04]} 6. exd4 {[%emt 0:00:27]} d5 {[%emt 0:00:03]} 7. O-O {[%emt 0:00:06]} Nc6 {[%emt 0:00:46]} 8. Nc3 {[%emt 0:00:08]} O-O {[%emt 0:00:11]} 9. h3 {[%emt 0:01:09]} b6 {[%emt 0:00:25]} 10. Ne5 {[%emt 0:01:03]} Bb7 {[%emt 0:00:54]} 11. Bf3 {[%emt 0:01:00]} Na5 {[%emt 0:00:04]} 12. Re1 {[%emt 0:02:33]} Rc8 {[%emt 0:00:49]} 13. cxd5 {[%emt 0:01:56]} Nxd5 {[%emt 0:00:27]} 14. Nxd5 {[%emt 0:00:10]} Bxd5 {[%emt 0:00:03]} 15. Bg4 {[%emt 0:02:35]} e6 {[%emt 0:00:22]} 16. Bd2 {[%emt 0:00:07]} Nc4 {[%emt 0:00:41]} 17. Bc3 {[%emt 0:00:04]} Qe7 {[%emt 0:00:48]} 18. Bf3 {[%emt 0:01:18]} Qb7 {[%emt 0:00:34]} 19. Bxd5 {[%emt 0:00:35]} Qxd5 {[%emt 0:00:04]} 20. Qg4 {[%emt 0:00:14]} Nd6 {[%emt 0:02:01]} 21. a4 {[%emt 0:01:13]} Rc7 {[%emt 0:00:38]} 22. Rad1 {[%emt 0:01:39]} Nf5 {[%emt 0:00:22]} 23. Qf4 {[%emt 0:00:40]} Rfc8 {[%emt 0:01:02]} 24. Ng4 {[%emt 0:00:32]} Rc4 {[%emt 0:00:27]} 25. Ne3 {[%emt 0:00:47]} Nxe3 {[%emt 0:00:04]} 26. fxe3 {[%emt 0:00:01]} Rxa4 {[%emt 0:00:07]} 27. Rf1 {[%emt 0:00:05]} e5 {[%emt 0:00:32]} 28. dxe5 {[%emt 0:00:21]} Rxf4 {[%emt 0:00:51]} 29. Rxd5 {[%emt 0:00:01]} Rxf1+ {[%emt 0:00:03]} 30. Kxf1 {[%emt 0:00:01]} Bf8 {[%emt 0:00:01]} 31. Rd7 {[%emt 0:00:05]} a5 {[%emt 0:00:02]} 32. Rb7 {[%emt 0:00:08]} Bc5 {[%emt 0:02:48]} 33. Ke2 {[%emt 0:00:01]} Re8 {[%emt 0:00:18]} 34. Bd4 {[%emt 0:00:07]} a4 {[%emt 0:01:04]} 35. Kd3 {[%emt 0:00:49]} Ra8 {[%emt 0:00:11]} 36. Ke4 {[%emt 0:00:31]} h5 {[%emt 0:01:49]} 37. g4 {[%emt 0:00:01]} hxg4 {[%emt 0:00:17]} 38. hxg4 {[%emt 0:00:01]} Kf8 {[%emt 0:00:14]} 39. Bxc5+ {[%emt 0:00:34]} bxc5 {[%emt 0:00:01]} 40. Rb5 {[%emt 0:00:01]} c4 {[%emt 0:00:10]} 41. Kd4 {[%emt 0:00:01]} a3 {[%emt 0:00:09]} 42. bxa3 {[%emt 0:00:01]} Rxa3 {[%emt 0:00:01]} 43. Rc5 {[%emt 0:00:08]} Rd3+ {[%emt 0:00:04]} 44. Ke4 {[%emt 0:00:01]} Rc3 {[%emt 0:00:01]} 45. Rc7 {[%emt 0:00:20]} g5 {[%emt 0:00:18]} 46. Kf5 {[%emt 0:00:16]} Rxe3 {[%emt 0:00:03]} 47. Rxc4 {[%emt 0:00:02]} Kg7 {[%emt 0:00:03]} 48. Rc5 {[%emt 0:00:18]} Re2 {[%emt 0:00:02]} 49. Rd5 {[%emt 0:00:22]} Re1 {[%emt 0:00:02]} 50. Rd7 {[%emt 0:00:09]} Re2 {[%emt 0:00:03]} 51. Re7 {[%emt 0:00:09]} Re1 {[%emt 0:00:02]} 52. Rc7 {[%emt 0:00:06]} Re2 {[%emt 0:00:01]} 53. Rc4 {[%emt 0:00:02]} Re1 {[%emt 0:01:38]} 54. Re4 {[%emt 0:00:04]} Rxe4 {[%emt 0:00:16]} 55. Kxe4 {[%emt 0:00:02]} Kf8 {[%emt 0:00:01]} 56. Kf5 {[%emt 0:00:21]} Ke7 {[%emt 0:00:01]} 57. Kxg5 {[%emt 0:00:02]} Ke6 {[%emt 0:00:01]} 58. Kf4 {[%emt 0:00:03]} f6 {[%emt 0:00:02]} 59. exf6 {Ke5+ Ke4+} 1/2-1/2